[Event "Early-Titled-Tuesday-Blitz-January-23-2024"]
[Site "Chess.com"]
[Date "2024.01.23"]
[Round "5"]
[White "anasta10"]
[Black "ChessboArt"]
[Result "1/2-1/2"]
[WhiteElo "2521"]
[BlackElo "2205"]
[TimeControl "180+1"]
[EndTime "8:56:11 PST"]
[Termination "Game drawn - insufficient material"]

1. Nf3 {[%clk 0:02:48.8]} 1... g6 {[%clk 0:02:57]} 2. d4 {[%clk 0:02:48.4]} 2...
Bg7 {[%clk 0:02:57]} 3. h4 {[%clk 0:02:48.7]} 3... Nf6 {[%clk 0:02:56.4]} 4. c4
{[%clk 0:02:48.3]} 4... d5 {[%clk 0:02:42.8]} 5. Nc3 {[%clk 0:02:47.3]} 5... c6
{[%clk 0:02:37.7]} 6. Bf4 {[%clk 0:02:46.6]} 6... dxc4 {[%clk 0:02:25.1]} 7. a4
{[%clk 0:02:39]} 7... Nd5 {[%clk 0:02:15.1]} 8. Bg5 {[%clk 0:02:31.1]} 8... Nxc3
{[%clk 0:02:06.8]} 9. bxc3 {[%clk 0:02:30.8]} 9... Qa5 {[%clk 0:01:50.4]} 10.
Qc1 {[%clk 0:02:26.4]} 10... Bf5 {[%clk 0:01:32.9]} 11. Nd2 {[%clk 0:02:24.5]}
11... Be6 {[%clk 0:01:27.3]} 12. e3 {[%clk 0:02:17.6]} 12... h6 {[%clk
0:01:03.5]} 13. Bf4 {[%clk 0:02:16.9]} 13... g5 {[%clk 0:01:03.8]} 14. Bg3
{[%clk 0:02:16.6]} 14... Nd7 {[%clk 0:00:57.1]} 15. Nxc4 {[%clk 0:02:08.9]}
15... Qd8 {[%clk 0:00:57]} 16. Nd2 {[%clk 0:02:01.5]} 16... Nf6 {[%clk
0:00:56.3]} 17. a5 {[%clk 0:01:57.7]} 17... Bf5 {[%clk 0:00:52.2]} 18. Qb2
{[%clk 0:01:54.1]} 18... Qd7 {[%clk 0:00:49.5]} 19. Be5 {[%clk 0:01:45]} 19...
O-O {[%clk 0:00:48.2]} 20. hxg5 {[%clk 0:01:44.1]} 20... hxg5 {[%clk 0:00:49.1]}
21. Be2 {[%clk 0:01:38.1]} 21... Ne4 {[%clk 0:00:47.1]} 22. Bxg7 {[%clk
0:01:29.2]} 22... Kxg7 {[%clk 0:00:45.8]} 23. c4 {[%clk 0:01:29.9]} 23... Rh8
{[%clk 0:00:29.2]} 24. Rg1 {[%clk 0:01:24.1]} 24... Nxd2 {[%clk 0:00:27.1]} 25.
Kxd2 {[%clk 0:01:21.2]} 25... e5 {[%clk 0:00:24.6]} 26. Rad1 {[%clk 0:01:12.5]}
26... exd4 {[%clk 0:00:24.5]} 27. exd4 {[%clk 0:01:12.7]} 27... Rae8 {[%clk
0:00:22.8]} 28. Kc1 {[%clk 0:01:08.4]} 28... Qd6 {[%clk 0:00:19.5]} 29. g3
{[%clk 0:00:45.9]} 29... Re7 {[%clk 0:00:12]} 30. Bd3 {[%clk 0:00:35.4]} 30...
Bxd3 {[%clk 0:00:11.1]} 31. Rxd3 {[%clk 0:00:36.3]} 31... Rhe8 {[%clk 0:00:11]}
32. Rgd1 {[%clk 0:00:31.2]} 32... Re2 {[%clk 0:00:10.5]} 33. R3d2 {[%clk
0:00:31.9]} 33... Rxd2 {[%clk 0:00:10]} 34. Rxd2 {[%clk 0:00:29.8]} 34... Re1+
{[%clk 0:00:09.1]} 35. Rd1 {[%clk 0:00:25.9]} 35... Qe7 {[%clk 0:00:09.7]} 36.
d5+ {[%clk 0:00:16.8]} 36... f6 {[%clk 0:00:08]} 37. dxc6 {[%clk 0:00:03.8]}
37... Rxd1+ {[%clk 0:00:07.1]} 38. Kxd1 {[%clk 0:00:04.7]} 38... Qd6+ {[%clk
0:00:07.3]} 39. Ke2 {[%clk 0:00:04.7]} 39... bxc6 {[%clk 0:00:08.2]} 40. Qb7+
{[%clk 0:00:04.6]} 40... Kg6 {[%clk 0:00:08.5]} 41. a6 {[%clk 0:00:05.5]} 41...
Qe5+ {[%clk 0:00:08.7]} 42. Kf1 {[%clk 0:00:05.7]} 42... Qa1+ {[%clk 0:00:08.3]}
43. Kg2 {[%clk 0:00:06.2]} 43... Qd4 {[%clk 0:00:08.7]} 44. Qxc6 {[%clk
0:00:06.3]} 44... g4 {[%clk 0:00:07.6]} 45. Qd5 {[%clk 0:00:06.6]} 45... Qa1
{[%clk 0:00:04.6]} 46. Qe4+ {[%clk 0:00:04.6]} 46... f5 {[%clk 0:00:04.4]} 47.
Qe6+ {[%clk 0:00:04.7]} 47... Kg5 {[%clk 0:00:05.1]} 48. c5 {[%clk 0:00:04.6]}
48... Qd4 {[%clk 0:00:04.4]} 49. Qe3+ {[%clk 0:00:04.6]} 49... Qxe3 {[%clk
0:00:04.1]} 50. fxe3 {[%clk 0:00:05.5]} 50... Kf6 {[%clk 0:00:04.6]} 51. e4
{[%clk 0:00:04.1]} 51... fxe4 {[%clk 0:00:03.8]} 52. Kf2 {[%clk 0:00:04.7]}
52... Ke5 {[%clk 0:00:04.4]} 53. Ke3 {[%clk 0:00:05.4]} 53... Kd5 {[%clk
0:00:04.7]} 54. c6 {[%clk 0:00:06]} 54... Kxc6 {[%clk 0:00:03.4]} 55. Kxe4
{[%clk 0:00:06.8]} 55... Kb5 {[%clk 0:00:04]} 56. Kf5 {[%clk 0:00:07.6]} 56...
Kxa6 {[%clk 0:00:04.8]} 57. Kxg4 {[%clk 0:00:08.3]} 57... Kb5 {[%clk 0:00:05.6]}
58. Kf5 {[%clk 0:00:09.2]} 58... a5 {[%clk 0:00:06]} 59. g4 {[%clk 0:00:10.1]}
59... a4 {[%clk 0:00:06.6]} 60. g5 {[%clk 0:00:11]} 60... a3 {[%clk 0:00:07]}
61. g6 {[%clk 0:00:11.9]} 61... a2 {[%clk 0:00:07.5]} 62. g7 {[%clk 0:00:12.8]}
62... a1=Q {[%clk 0:00:07.7]} 63. g8=Q {[%clk 0:00:13.7]} 63... Qf1+ {[%clk
0:00:07.4]} 64. Kg6 {[%clk 0:00:13]} 64... Qg2+ {[%clk 0:00:07.3]} 65. Kf7
{[%clk 0:00:13.6]} 65... Qxg8+ {[%clk 0:00:07.5]} 66. Kxg8 {[%clk 0:00:14.5]}
1/2-1/2

[Event "Early-Titled-Tuesday-Blitz-January-23-2024"]
[Site "Chess.com"]
[Date "2024.01.23"]
[Round "5"]
[White "Sargsyan_Shant"]
[Black "CaspiIsrael"]
[Result "0-1"]
[WhiteElo "2903"]
[BlackElo "2699"]
[TimeControl "180+1"]
[EndTime "8:56:12 PST"]
[Termination "CaspiIsrael won on time"]

1. c4 {[%clk 0:03:00.2]} 1... e6 {[%clk 0:02:59.7]} 2. g3 {[%clk 0:02:58.9]}
2... d5 {[%clk 0:02:58.4]} 3. Bg2 {[%clk 0:02:59.8]} 3... dxc4 {[%clk
0:02:58.5]} 4. Qa4+ {[%clk 0:02:57.5]} 4... c6 {[%clk 0:02:53.3]} 5. Qxc4 {[%clk
0:02:57.8]} 5... Nf6 {[%clk 0:02:52.7]} 6. Qc2 {[%clk 0:02:53.7]} 6... Be7
{[%clk 0:02:47]} 7. Nf3 {[%clk 0:02:52.2]} 7... b5 {[%clk 0:02:44.8]} 8. O-O
{[%clk 0:02:50.2]} 8... Bb7 {[%clk 0:02:44.8]} 9. d4 {[%clk 0:02:50.6]} 9... O-O
{[%clk 0:02:44.2]} 10. Rd1 {[%clk 0:02:51.2]} 10... Nbd7 {[%clk 0:02:43.6]} 11.
Nc3 {[%clk 0:02:50.5]} 11... Rc8 {[%clk 0:02:41]} 12. e4 {[%clk 0:02:50]} 12...
c5 {[%clk 0:02:36.8]} 13. d5 {[%clk 0:02:39.6]} 13... exd5 {[%clk 0:02:25]} 14.
e5 {[%clk 0:02:39.2]} 14... Ne8 {[%clk 0:02:11.9]} 15. Nxd5 {[%clk 0:02:37.1]}
15... Bxd5 {[%clk 0:02:07.3]} 16. Rxd5 {[%clk 0:02:38]} 16... Nc7 {[%clk
0:02:07.7]} 17. Rd1 {[%clk 0:02:37.1]} 17... Ne6 {[%clk 0:02:00.1]} 18. h4
{[%clk 0:02:36.1]} 18... h6 {[%clk 0:01:59.6]} 19. Bh3 {[%clk 0:02:33]} 19...
Qc7 {[%clk 0:01:49.6]} 20. Bxh6 {[%clk 0:02:24.4]} 20... Nxe5 {[%clk 0:01:43.1]}
21. Nxe5 {[%clk 0:02:25.3]} 21... Qxe5 {[%clk 0:01:43.7]} 22. Be3 {[%clk
0:02:25.6]} 22... Bf6 {[%clk 0:01:35.2]} 23. Rab1 {[%clk 0:02:25.5]} 23... a6
{[%clk 0:01:31.8]} 24. Rd7 {[%clk 0:02:16.7]} 24... c4 {[%clk 0:01:28.4]} 25.
Ra7 {[%clk 0:02:09.3]} 25... Ra8 {[%clk 0:01:27.6]} 26. Rxa8 {[%clk 0:01:58.9]}
26... Rxa8 {[%clk 0:01:28.5]} 27. b3 {[%clk 0:01:59.7]} 27... c3 {[%clk
0:01:21.8]} 28. b4 {[%clk 0:01:59.9]} 28... Nd4 {[%clk 0:01:18.6]} 29. Bxd4
{[%clk 0:01:53.2]} 29... Qxd4 {[%clk 0:01:18.6]} 30. a3 {[%clk 0:01:49.8]} 30...
Rd8 {[%clk 0:01:15.9]} 31. Bf5 {[%clk 0:01:33.7]} 31... Qd2 {[%clk 0:01:14.5]}
32. Qe4 {[%clk 0:01:23.9]} 32... Qa2 {[%clk 0:00:57.2]} 33. Re1 {[%clk
0:01:14.6]} 33... g6 {[%clk 0:00:35.1]} 34. Bg4 {[%clk 0:01:06.6]} 34... c2
{[%clk 0:00:27.8]} 35. Rc1 {[%clk 0:01:06.8]} 35... Rd2 {[%clk 0:00:22.6]} 36.
h5 {[%clk 0:01:03.2]} 36... Qb2 {[%clk 0:00:20.6]} 37. Qe1 {[%clk 0:00:51.4]}
37... Qd4 {[%clk 0:00:20.6]} 38. hxg6 {[%clk 0:00:49.7]} 38... fxg6 {[%clk
0:00:18.8]} 39. Bf3 {[%clk 0:00:44.9]} 39... Kg7 {[%clk 0:00:19.1]} 40. Kg2
{[%clk 0:00:35.4]} 40... Bg5 {[%clk 0:00:19.1]} 41. Kh3 {[%clk 0:00:09.9]} 41...
Rxf2 {[%clk 0:00:16.9]} 42. Bg4 {[%clk 0:00:03.9]} 42... Bxc1 {[%clk 0:00:14.8]}
43. Qxc1 {[%clk 0:00:04.1]} 43... Rd2 {[%clk 0:00:11.6]} 44. Qe1 {[%clk
0:00:03.4]} 44... Qd6 {[%clk 0:00:08.6]} 45. Qa1+ {[%clk 0:00:01.9]} 45... Qf6
{[%clk 0:00:08.4]} 46. Qe1 {[%clk 0:00:02.6]} 46... Rf2 {[%clk 0:00:06.8]} 47.
Qe3 {[%clk 0:00:01.3]} 47... Rf1 {[%clk 0:00:05.1]} 48. Qa7+ {[%clk 0:00:01.7]}
48... Kh6 {[%clk 0:00:05.5]} 49. Qb8 {[%clk 0:00:01.7]} 49... c1=Q {[%clk
0:00:04.1]} 50. Qh8+ {[%clk 0:00:01.9]} 50... Qxh8 {[%clk 0:00:04.1]} 51. Bf3
{[%clk 0:00:02.5]} 51... Qe5 {[%clk 0:00:04.6]} 52. Kg4 {[%clk 0:00:03.4]} 52...
Rg1 {[%clk 0:00:05.2]} 53. Kh3 {[%clk 0:00:02.9]} 53... Qcg5 {[%clk 0:00:06.1]}
0-1

[Event "Early-Titled-Tuesday-Blitz-January-23-2024"]
[Site "Chess.com"]
[Date "2024.01.23"]
[Round "5"]
[White "publicaccountcze"]
[Black "dmosesov"]
[Result "1/2-1/2"]
[WhiteElo "2322"]
[BlackElo "2610"]
[TimeControl "180+1"]
[EndTime "8:56:12 PST"]
[Termination "Game drawn - insufficient material"]

1. e4 {[%clk 0:03:00.9]} 1... Nf6 {[%clk 0:02:18]} 2. e5 {[%clk 0:03:00]} 2...
Nd5 {[%clk 0:02:11]} 3. c4 {[%clk 0:02:59]} 3... Nb6 {[%clk 0:02:11]} 4. d4
{[%clk 0:02:59.6]} 4... d6 {[%clk 0:02:11.3]} 5. f4 {[%clk 0:03:00.2]} 5... dxe5
{[%clk 0:02:06.4]} 6. fxe5 {[%clk 0:03:01.1]} 6... Nc6 {[%clk 0:02:03.4]} 7. Be3
{[%clk 0:03:00.4]} 7... Bf5 {[%clk 0:01:57.7]} 8. Nc3 {[%clk 0:02:59.6]} 8... e6
{[%clk 0:01:54.4]} 9. Nf3 {[%clk 0:02:54.8]} 9... Be7 {[%clk 0:01:51.1]} 10. Be2
{[%clk 0:02:51.5]} 10... O-O {[%clk 0:01:50.1]} 11. O-O {[%clk 0:02:49.6]} 11...
f6 {[%clk 0:01:50.6]} 12. Qd2 {[%clk 0:02:24.3]} 12... fxe5 {[%clk 0:01:38]} 13.
dxe5 {[%clk 0:02:25.2]} 13... Qxd2 {[%clk 0:01:37]} 14. Bxd2 {[%clk 0:02:22.8]}
14... Nd7 {[%clk 0:01:13.3]} 15. Bf4 {[%clk 0:02:11.1]} 15... Bg4 {[%clk
0:00:59.2]} 16. Bg3 {[%clk 0:02:08.6]} 16... Bxf3 {[%clk 0:00:57.7]} 17. Bxf3
{[%clk 0:02:09.5]} 17... Ncxe5 {[%clk 0:00:51.6]} 18. Bxb7 {[%clk 0:01:57.7]}
18... Rab8 {[%clk 0:00:48.5]} 19. Rxf8+ {[%clk 0:01:51.6]} 19... Bxf8 {[%clk
0:00:48]} 20. Ba6 {[%clk 0:01:30.3]} 20... Rxb2 {[%clk 0:00:47.6]} 21. Re1
{[%clk 0:01:28.2]} 21... Bc5+ {[%clk 0:00:46.6]} 22. Kh1 {[%clk 0:01:27.3]}
22... Nd3 {[%clk 0:00:47.1]} 23. Re2 {[%clk 0:01:15.8]} 23... Nb6 {[%clk
0:00:25.7]} 24. Rxb2 {[%clk 0:01:11.7]} 24... Nxb2 {[%clk 0:00:24.2]} 25. Bxc7
{[%clk 0:01:10.3]} 25... N2xc4 {[%clk 0:00:24.6]} 26. Nb5 {[%clk 0:01:03]} 26...
Nd5 {[%clk 0:00:21.6]} 27. Bg3 {[%clk 0:00:50.8]} 27... Nb4 {[%clk 0:00:21.9]}
28. Bc8 {[%clk 0:00:47]} 28... Kf7 {[%clk 0:00:22.3]} 29. a3 {[%clk 0:00:41.9]}
29... Nd3 {[%clk 0:00:21.6]} 30. a4 {[%clk 0:00:40.8]} 30... e5 {[%clk
0:00:21.4]} 31. Bb7 {[%clk 0:00:34]} 31... Kf6 {[%clk 0:00:19.1]} 32. Nc7 {[%clk
0:00:31.1]} 32... Bf2 {[%clk 0:00:18.9]} 33. Ba6 {[%clk 0:00:27.4]} 33... Bxg3
{[%clk 0:00:18.4]} 34. Bxc4 {[%clk 0:00:27.1]} 34... Nf2+ {[%clk 0:00:17.9]} 35.
Kg1 {[%clk 0:00:26.5]} 35... Bh4 {[%clk 0:00:15.4]} 36. g3 {[%clk 0:00:26.8]}
36... Bxg3 {[%clk 0:00:13.7]} 37. hxg3 {[%clk 0:00:26.9]} 37... Ne4 {[%clk
0:00:14.6]} 38. Bd3 {[%clk 0:00:25.5]} 38... Nc5 {[%clk 0:00:14]} 39. a5 {[%clk
0:00:24.1]} 39... Nxd3 {[%clk 0:00:13.8]} 40. Nb5 {[%clk 0:00:23.3]} 40... e4
{[%clk 0:00:14.7]} 41. Nxa7 {[%clk 0:00:22.9]} 41... Nb4 {[%clk 0:00:14.7]} 42.
Nb5 {[%clk 0:00:21.5]} 42... Ke5 {[%clk 0:00:15.3]} 43. Kf2 {[%clk 0:00:21.9]}
43... g5 {[%clk 0:00:15.1]} 44. Nc7 {[%clk 0:00:21.9]} 44... h5 {[%clk
0:00:15.4]} 45. a6 {[%clk 0:00:22.1]} 45... Nc6 {[%clk 0:00:15.9]} 46. Nb5
{[%clk 0:00:21.4]} 46... h4 {[%clk 0:00:16]} 47. gxh4 {[%clk 0:00:18.3]} 47...
gxh4 {[%clk 0:00:16.9]} 48. a7 {[%clk 0:00:19.1]} 48... Nxa7 {[%clk 0:00:16.4]}
49. Nxa7 {[%clk 0:00:20]} 49... h3 {[%clk 0:00:14.7]} 50. Nc6+ {[%clk
0:00:20.3]} 50... Kf4 {[%clk 0:00:14.3]} 51. Nd4 {[%clk 0:00:19.8]} 51... e3+
{[%clk 0:00:13.3]} 52. Kg1 {[%clk 0:00:16.8]} 52... Ke4 {[%clk 0:00:13.8]} 53.
Ne2 {[%clk 0:00:16.8]} 53... Kd3 {[%clk 0:00:14]} 54. Nf4+ {[%clk 0:00:16.4]}
54... Ke4 {[%clk 0:00:14.2]} 55. Ne2 {[%clk 0:00:16.6]} 55... Kf3 {[%clk
0:00:14.3]} 56. Nd4+ {[%clk 0:00:16.2]} 56... Kg3 {[%clk 0:00:14.9]} 57. Kh1
{[%clk 0:00:16.4]} 57... Kf2 {[%clk 0:00:15.3]} 58. Kh2 {[%clk 0:00:16.2]} 58...
e2 {[%clk 0:00:15.8]} 59. Nxe2 {[%clk 0:00:16.5]} 59... Kxe2 {[%clk 0:00:16.7]}
60. Kxh3 {[%clk 0:00:17.4]} 1/2-1/2

[Event "Early-Titled-Tuesday-Blitz-January-23-2024"]
[Site "Chess.com"]
[Date "2024.01.23"]
[Round "5"]
[White "PepeCuenca"]
[Black "santosalberto1987"]
[Result "1-0"]
[WhiteElo "2718"]
[BlackElo "2536"]
[TimeControl "180+1"]
[EndTime "8:56:13 PST"]
[Termination "PepeCuenca won on time"]

1. d4 {[%clk 0:03:00.9]} 1... d5 {[%clk 0:02:57.9]} 2. Bf4 {[%clk 0:03:00.7]}
2... Nf6 {[%clk 0:02:57.5]} 3. e3 {[%clk 0:02:58.7]} 3... c5 {[%clk 0:02:56.3]}
4. dxc5 {[%clk 0:02:59.6]} 4... Nc6 {[%clk 0:02:56]} 5. Bb5 {[%clk 0:02:59.2]}
5... Ne4 {[%clk 0:02:42]} 6. b4 {[%clk 0:02:49.3]} 6... g6 {[%clk 0:02:04.2]} 7.
Be5 {[%clk 0:02:43.3]} 7... f6 {[%clk 0:02:04.3]} 8. Bb2 {[%clk 0:02:43.5]} 8...
e5 {[%clk 0:01:57.1]} 9. Ne2 {[%clk 0:02:31.7]} 9... Bg7 {[%clk 0:01:49.7]} 10.
h4 {[%clk 0:02:21.5]} 10... f5 {[%clk 0:01:23.9]} 11. f3 {[%clk 0:02:20.7]}
11... Nf6 {[%clk 0:01:24.1]} 12. Bxe5 {[%clk 0:02:20.6]} 12... O-O {[%clk
0:01:24.7]} 13. Bxc6 {[%clk 0:02:16.1]} 13... bxc6 {[%clk 0:01:24.2]} 14. Bd4
{[%clk 0:01:59.7]} 14... Ba6 {[%clk 0:01:18.2]} 15. Nbc3 {[%clk 0:01:56.8]}
15... Re8 {[%clk 0:01:16.7]} 16. Qd2 {[%clk 0:01:53.6]} 16... Bc4 {[%clk
0:01:15.4]} 17. Nf4 {[%clk 0:01:49.4]} 17... a5 {[%clk 0:01:07.2]} 18. bxa5
{[%clk 0:01:43.7]} 18... Qxa5 {[%clk 0:01:03.1]} 19. h5 {[%clk 0:01:42.6]} 19...
Kf7 {[%clk 0:00:54.6]} 20. hxg6+ {[%clk 0:01:32]} 20... hxg6 {[%clk 0:00:55.5]}
21. Nd3 {[%clk 0:01:32.6]} 21... Bxd3 {[%clk 0:00:51.8]} 22. cxd3 {[%clk
0:01:30.5]} 22... Rh8 {[%clk 0:00:47.7]} 23. Rxh8 {[%clk 0:01:24]} 23... Rxh8
{[%clk 0:00:48.6]} 24. Kf2 {[%clk 0:01:20.2]} 24... Qc7 {[%clk 0:00:45.4]} 25.
Ne2 {[%clk 0:01:12.1]} 25... Qh2 {[%clk 0:00:39.8]} 26. Rb1 {[%clk 0:01:04.6]}
26... Qh4+ {[%clk 0:00:32.6]} 27. Kf1 {[%clk 0:00:49.7]} 27... Qh1+ {[%clk
0:00:19.6]} 28. Ng1 {[%clk 0:00:49.9]} 28... Kg8 {[%clk 0:00:16.2]} 29. Rb8+
{[%clk 0:00:48]} 29... Kh7 {[%clk 0:00:16.5]} 30. Rxh8+ {[%clk 0:00:47.3]} 30...
Kxh8 {[%clk 0:00:17.4]} 31. Bxf6 {[%clk 0:00:46.6]} 31... Bxf6 {[%clk
0:00:17.3]} 32. d4 {[%clk 0:00:47]} 32... Qh2 {[%clk 0:00:14.5]} 33. a4 {[%clk
0:00:45.6]} 33... Qc7 {[%clk 0:00:13.5]} 34. Qb4 {[%clk 0:00:44.2]} 34... Qa7
{[%clk 0:00:11.8]} 35. a5 {[%clk 0:00:44]} 35... Qa6+ {[%clk 0:00:10.7]} 36. Ne2
{[%clk 0:00:42.9]} 36... Qd3 {[%clk 0:00:09.1]} 37. Qb8+ {[%clk 0:00:37.4]}
37... Kh7 {[%clk 0:00:08]} 38. Qc7+ {[%clk 0:00:33.7]} 38... Kh6 {[%clk
0:00:08.2]} 39. Qxc6 {[%clk 0:00:34.3]} 39... Bh4 {[%clk 0:00:07.9]} 40. g3
{[%clk 0:00:33.8]} 40... Bxg3 {[%clk 0:00:06.7]} 41. Qxd5 {[%clk 0:00:22.1]}
41... Qd1+ {[%clk 0:00:06.7]} 42. Kg2 {[%clk 0:00:22.8]} 42... Qxe2+ {[%clk
0:00:07.3]} 43. Kxg3 {[%clk 0:00:23.5]} 43... g5 {[%clk 0:00:05.4]} 44. Qe6+
{[%clk 0:00:16.8]} 44... Kh5 {[%clk 0:00:05.4]} 45. Qe8+ {[%clk 0:00:13.6]}
45... Kh6 {[%clk 0:00:05.4]} 46. Qh8+ {[%clk 0:00:12.1]} 46... Kg6 {[%clk
0:00:05.7]} 47. Qh2 {[%clk 0:00:12.1]} 47... Qxe3 {[%clk 0:00:05.6]} 48. Qf2
{[%clk 0:00:11]} 48... Qf4+ {[%clk 0:00:05.2]} 49. Kg2 {[%clk 0:00:11.5]} 49...
g4 {[%clk 0:00:04.3]} 50. fxg4 {[%clk 0:00:11.8]} 50... Qe4+ {[%clk 0:00:04.9]}
51. Qf3 {[%clk 0:00:11.1]} 51... Qc2+ {[%clk 0:00:04.7]} 52. Kg3 {[%clk
0:00:11.5]} 52... fxg4 {[%clk 0:00:01.8]} 53. Qxg4+ {[%clk 0:00:11.9]} 53... Kh7
{[%clk 0:00:01.8]} 54. Qh4+ {[%clk 0:00:09.6]} 54... Kg7 {[%clk 0:00:02]} 55.
Qg4+ {[%clk 0:00:10.3]} 55... Kh7 {[%clk 0:00:02.4]} 56. Qf4 {[%clk 0:00:08.5]}
56... Qd1 {[%clk 0:00:02]} 57. Qh4+ {[%clk 0:00:08]} 57... Kg6 {[%clk
0:00:01.3]} 58. Qg4+ {[%clk 0:00:08.7]} 1-0

[Event "Early-Titled-Tuesday-Blitz-January-23-2024"]
[Site "Chess.com"]
[Date "2024.01.23"]
[Round "5"]
[White "dosto07"]
[Black "ChessQueen"]
[Result "0-1"]
[WhiteElo "2546"]
[BlackElo "2735"]
[TimeControl "180+1"]
[EndTime "8:56:17 PST"]
[Termination "ChessQueen won on time"]

1. e4 {[%clk 0:03:00.9]} 1... c6 {[%clk 0:02:59.3]} 2. d4 {[%clk 0:02:57.9]}
2... d5 {[%clk 0:02:59.2]} 3. Nc3 {[%clk 0:02:58]} 3... dxe4 {[%clk 0:02:58.7]}
4. Nxe4 {[%clk 0:02:58.5]} 4... Nf6 {[%clk 0:02:57.9]} 5. Nxf6+ {[%clk
0:02:58.5]} 5... exf6 {[%clk 0:02:57.9]} 6. c3 {[%clk 0:02:59]} 6... Bd6 {[%clk
0:02:57.4]} 7. Bd3 {[%clk 0:02:59.6]} 7... Na6 {[%clk 0:02:56.3]} 8. Ne2 {[%clk
0:02:58.8]} 8... Nc7 {[%clk 0:02:53.8]} 9. O-O {[%clk 0:02:56.4]} 9... h5 {[%clk
0:02:49.5]} 10. Bf4 {[%clk 0:02:49.6]} 10... h4 {[%clk 0:02:42.6]} 11. h3 {[%clk
0:02:34.8]} 11... Be6 {[%clk 0:02:31.9]} 12. Re1 {[%clk 0:02:29.3]} 12... O-O
{[%clk 0:02:27.7]} 13. Qd2 {[%clk 0:02:26.7]} 13... Re8 {[%clk 0:02:00.1]} 14.
Bxd6 {[%clk 0:02:23.5]} 14... Qxd6 {[%clk 0:02:00.2]} 15. Nf4 {[%clk 0:02:08.2]}
15... Bd7 {[%clk 0:01:53.9]} 16. Bc4 {[%clk 0:01:58]} 16... b5 {[%clk
0:01:42.6]} 17. Bb3 {[%clk 0:01:57.6]} 17... a5 {[%clk 0:01:37.4]} 18. a4 {[%clk
0:01:55.1]} 18... b4 {[%clk 0:01:32.7]} 19. c4 {[%clk 0:01:45.6]} 19... c5
{[%clk 0:01:32.3]} 20. d5 {[%clk 0:01:42.1]} 20... Re5 {[%clk 0:01:28.9]} 21.
Nd3 {[%clk 0:01:41]} 21... Rg5 {[%clk 0:01:23.2]} 22. Qf4 {[%clk 0:01:32.1]}
22... Qxf4 {[%clk 0:01:18.1]} 23. Nxf4 {[%clk 0:01:31.8]} 23... Ne8 {[%clk
0:01:16.5]} 24. Re7 {[%clk 0:01:21.2]} 24... Bf5 {[%clk 0:01:10.2]} 25. Rae1
{[%clk 0:01:12.6]} 25... Kf8 {[%clk 0:01:10]} 26. Rb7 {[%clk 0:00:57.5]} 26...
Nd6 {[%clk 0:01:08.5]} 27. Rc7 {[%clk 0:00:52.4]} 27... Rc8 {[%clk 0:00:55.7]}
28. Ree7 {[%clk 0:00:47.4]} 28... Be4 {[%clk 0:00:42.9]} 29. Rxc8+ {[%clk
0:00:17.7]} 29... Kxe7 {[%clk 0:00:42.5]} 30. Rc7+ {[%clk 0:00:17.6]} 30... Kd8
{[%clk 0:00:41.3]} 31. Rxc5 {[%clk 0:00:16.6]} 31... Re5 {[%clk 0:00:39.7]} 32.
Rxa5 {[%clk 0:00:13.3]} 32... g5 {[%clk 0:00:38.9]} 33. Ra8+ {[%clk 0:00:09.2]}
33... Kc7 {[%clk 0:00:38]} 34. Nh5 {[%clk 0:00:06.6]} 34... Bd3 {[%clk
0:00:38.2]} 35. Nxf6 {[%clk 0:00:05.6]} 35... Re1+ {[%clk 0:00:37.4]} 36. Kh2
{[%clk 0:00:05.7]} 36... Bxc4 {[%clk 0:00:32.9]} 37. Bxc4 {[%clk 0:00:04.6]}
37... Nxc4 {[%clk 0:00:33.8]} 38. Ra7+ {[%clk 0:00:04.9]} 38... Kb6 {[%clk
0:00:32.6]} 39. Rxf7 {[%clk 0:00:05.5]} 39... Nxb2 {[%clk 0:00:33]} 40. d6
{[%clk 0:00:04.4]} 40... Nxa4 {[%clk 0:00:30.5]} 41. d7 {[%clk 0:00:04.4]} 41...
Rd1 {[%clk 0:00:30.9]} 42. Rf8 {[%clk 0:00:04.2]} 42... Kc7 {[%clk 0:00:27.8]}
43. Rc8+ {[%clk 0:00:03.7]} 43... Kb7 {[%clk 0:00:28.3]} 44. d8=Q {[%clk
0:00:04.2]} 44... Rxd8 {[%clk 0:00:28.4]} 45. Rxd8 {[%clk 0:00:04.9]} 45... b3
{[%clk 0:00:29.3]} 46. Rd2 {[%clk 0:00:04.7]} 46... b2 {[%clk 0:00:28.4]} 47.
Rd1 {[%clk 0:00:04.2]} 47... Kc6 {[%clk 0:00:28.5]} 48. Ne4 {[%clk 0:00:03.3]}
48... Kb5 {[%clk 0:00:28.3]} 49. Nxg5 {[%clk 0:00:02.8]} 49... Kc4 {[%clk
0:00:28.9]} 50. Nf3 {[%clk 0:00:02.6]} 50... Kb3 {[%clk 0:00:28.6]} 51. Nxh4
{[%clk 0:00:02.8]} 51... Kc2 {[%clk 0:00:28.8]} 52. Re1 {[%clk 0:00:02.7]} 52...
Nc3 {[%clk 0:00:29.2]} 53. Rf1 {[%clk 0:00:02.1]} 53... Nd1 {[%clk 0:00:28.7]}
54. Nf3 {[%clk 0:00:01.2]} 54... b1=Q {[%clk 0:00:28.5]} 55. Nd4+ {[%clk
0:00:01.8]} 55... Kd3 {[%clk 0:00:28.1]} 56. Nf3 {[%clk 0:00:01.7]} 56... Ke2
{[%clk 0:00:27]} 57. Kg1 {[%clk 0:00:01.8]} 57... Qc2 {[%clk 0:00:20.9]} 58.
Re1+ {[%clk 0:00:02.7]} 58... Kd3 {[%clk 0:00:21.3]} 59. Rf1 {[%clk 0:00:03.1]}
59... Qa4 {[%clk 0:00:18.4]} 60. Ne1+ {[%clk 0:00:03.2]} 60... Kd2 {[%clk
0:00:17.9]} 61. Nf3+ {[%clk 0:00:04.1]} 61... Kd3 {[%clk 0:00:17.4]} 62. Ne1+
{[%clk 0:00:04.3]} 62... Ke4 {[%clk 0:00:17.2]} 63. Nf3 {[%clk 0:00:05.1]} 63...
Kf4 {[%clk 0:00:17.1]} 64. Re1 {[%clk 0:00:03.9]} 64... Nc3 {[%clk 0:00:17.2]}
65. Kh2 {[%clk 0:00:03.5]} 65... Qa7 {[%clk 0:00:17]} 66. Rf1 {[%clk 0:00:02.8]}
66... Ne4 {[%clk 0:00:16.6]} 67. Kg1 {[%clk 0:00:01.9]} 67... Qb6 {[%clk
0:00:14.8]} 0-1